Workbook

Sheet Zadání
B2: Volitelné parametry
B3: cena elektřiny [Kč/kWh] | C3: 1.31
B4: eskalace ceny elektřiny [%] | C4: 2
B5: cena uhlí [Kč/q] | C5: 310
B6: eskalace ceny uhlí [%] | C6: 2
B7: začátek topné sezony [-] | C7: 2016-09-24
B8: konec topné sezony [-] | C8: 2016-05-06
B9: nominální diskotní míra [%] | C9: 3.53
B10: ekonomická životnost [rok] | C10: 25 | D10: (1-25)
B12: NPV [Kč] | C12: =ROUND('Cash Flow'!C19+NPV(C9/100,OFFSET('Cash Flow'!D19,,,,Zadání!C10)),-3) -> -192000
B14: IRR [%] | C14: -11.97367519
B15: Cena elektřiny pro NPV=0 [Kč] | C15: 4.685657265
B23: Citlivostní analýza na eskalaci cen elektřiny
C24: 0 | D24: 1.25 | E24: 2.5 | F24: 3.75 | G24: 5 | H24: 6.25 | I24: 7.5 | J24: 8.75 | K24: 10 | L24: 11.25 | M24: 12.5
B25: =$C$12 -> -192000 | C25: -207000 | D25: -198000 | E25: -188000 | F25: -175000 | G25: -159000 | H25: -140000 | I25: -118000 | J25: -90000 | K25: -56000 | L25: -14000 | M25: 37000
B27: Citlivostní analýza na cenu elektřiny
C28: 0.5 | D28: 1 | E28: 1.5 | F28: 2 | G28: 2.5 | H28: 3 | I28: 3.5 | J28: 4 | K28: 4.5 | L28: 5 | M28: 5.5
B29: =$C$12 -> -192000 | C29: -238000 | D29: -210000 | E29: -181000 | F29: -153000 | G29: -124000 | H29: -96000 | I29: -67000 | J29: -39000 | K29: -10000 | L29: 18000 | M29: 47000
B31: Citlivostní analýza na eskalaci cen uhlí
C32: 0 | D32: 1.5 | E32: 3 | F32: 4.5 | G32: 6 | H32: 7.5 | I32: 9 | J32: 10.5 | K32: 12 | L32: 13.5 | M32: 15
B33: =$C$12 -> -192000 | C33: -200000 | D33: -194000 | E33: -187000 | F33: -178000 | G33: -167000 | H33: -152000 | I33: -134000 | J33: -111000 | K33: -82000 | L33: -44000 | M33: 4000
B36: Citlivostní analýza na cenu uhlí
C37: 100 | D37: 175 | E37: 250 | F37: 325 | G37: 400 | H37: 475 | I37: 550 | J37: 625 | K37: 700 | L37: 775 | M37: 850 | N37: 925 | O37: 1000 | P37: 1075 | Q37: 1150 | R37: 1225 | S37: 1300 | T37: 1375 | U37: 1450 | V37: 1525 | W37: 1600 | X37: 1675 | Y37: 1750 | Z37: 1825 | AA37: 1900
B38: =C12 -> -192000 | C38: -219000 | D38: -209000 | E38: -200000 | F38: -190000 | G38: -180000 | H38: -171000 | I38: -161000 | J38: -152000 | K38: -142000 | L38: -132000 | M38: -123000 | N38: -113000 | O38: -104000 | P38: -94000 | Q38: -84000 | R38: -75000 | S38: -65000 | T38: -56000 | U38: -46000 | V38: -37000 | W38: -27000 | X38: -17000 | Y38: -8000 | Z38: 2000 | AA38: 11000
B40: Ciltivostní analýza na diskotní míru
C41: -13 | D41: -12 | E41: -11 | F41: -10 | G41: -9 | H41: -8 | I41: -7 | J41: -6 | K41: -5 | L41: -4 | M41: -3 | N41: -2 | O41: -1 | P41: 0 | Q41: 1 | R41: 2 | S41: 3 | T41: 4 | U41: 5 | V41: 6 | W41: 7 | X41: 8 | Y41: 9
B42: =C12 -> -192000 | C42: 31000 | D42: 1000 | E42: -26000 | F42: -51000 | G42: -72000 | H42: -91000 | I42: -108000 | J42: -122000 | K42: -134000 | L42: -145000 | M42: -154000 | N42: -163000 | O42: -170000 | P42: -176000 | Q42: -181000 | R42: -186000 | S42: -190000 | T42: -194000 | U42: -197000 | V42: -200000 | W42: -202000 | X42: -205000 | Y42: -207000
B44: Citlivostní analýza na dobu životnosti
C45: 1 | D45: 2 | E45: 3 | F45: 4 | G45: 5 | H45: 6 | I45: 7 | J45: 8 | K45: 9 | L45: 10 | M45: 11 | N45: 12 | O45: 13 | P45: 14 | Q45: 15 | R45: 16 | S45: 17 | T45: 18 | U45: 19 | V45: 20 | W45: 21 | X45: 22 | Y45: 23 | Z45: 24 | AA45: 25
B46: =C12 -> -192000 | C46: -250000 | D46: -245000 | E46: -240000 | F46: -237000 | G46: -232000 | H46: -228000 | I46: -223000 | J46: -221000 | K46: -216000 | L46: -216000 | M46: -212000 | N46: -210000 | O46: -206000 | P46: -202000 | Q46: -217000 | R46: -215000 | S46: -211000 | T46: -208000 | U46: -205000 | V46: -206000 | W46: -203000 | X46: -200000 | Y46: -197000 | Z46: -195000 | AA46: -192000
F83: Cena elektřiny [Kč/kWh]
E84: =C12 -> -192000 | F84: 0.5 | G84: 1 | H84: 1.5 | I84: 2 | J84: 2.5 | K84: 3 | L84: 3.5 | M84: 4 | N84: 4.5 | O84: 5 | P84: 5.5
D85: Cena uhlí [Kč/q] | E85: 300 | F85: -239000 | G85: -211000 | H85: -182000 | I85: -154000 | J85: -125000 | K85: -97000 | L85: -68000 | M85: -40000 | N85: -11000 | O85: 17000 | P85: 45000
E86: 375 | F86: -230000 | G86: -201000 | H86: -173000 | I86: -144000 | J86: -116000 | K86: -87000 | L86: -59000 | M86: -30000 | N86: -2000 | O86: 27000 | P86: 55000
E87: 450 | F87: -220000 | G87: -192000 | H87: -163000 | I87: -135000 | J87: -106000 | K87: -78000 | L87: -49000 | M87: -21000 | N87: 8000 | O87: 36000 | P87: 65000
E88: 525 | F88: -211000 | G88: -182000 | H88: -154000 | I88: -125000 | J88: -97000 | K88: -68000 | L88: -40000 | M88: -11000 | N88: 17000 | O88: 46000 | P88: 74000
E89: 600 | F89: -201000 | G89: -173000 | H89: -144000 | I89: -116000 | J89: -87000 | K89: -59000 | L89: -30000 | M89: -2000 | N89: 27000 | O89: 55000 | P89: 84000
E90: 675 | F90: -191000 | G90: -163000 | H90: -134000 | I90: -106000 | J90: -77000 | K90: -49000 | L90: -20000 | M90: 8000 | N90: 36000 | O90: 65000 | P90: 93000
E91: 750 | F91: -182000 | G91: -153000 | H91: -125000 | I91: -96000 | J91: -68000 | K91: -39000 | L91: -11000 | M91: 18000 | N91: 46000 | O91: 75000 | P91: 103000
E92: 825 | F92: -172000 | G92: -144000 | H92: -115000 | I92: -87000 | J92: -58000 | K92: -30000 | L92: -1000 | M92: 27000 | N92: 56000 | O92: 84000 | P92: 113000
E93: 900 | F93: -163000 | G93: -134000 | H93: -106000 | I93: -77000 | J93: -49000 | K93: -20000 | L93: 8000 | M93: 37000 | N93: 65000 | O93: 94000 | P93: 122000
E94: 975 | F94: -153000 | G94: -125000 | H94: -96000 | I94: -68000 | J94: -39000 | K94: -11000 | L94: 18000 | M94: 46000 | N94: 75000 | O94: 103000 | P94: 132000
E95: 1050 | F95: -143000 | G95: -115000 | H95: -86000 | I95: -58000 | J95: -29000 | K95: -1000 | L95: 28000 | M95: 56000 | N95: 84000 | O95: 113000 | P95: 141000
E96: 1125 | F96: -134000 | G96: -105000 | H96: -77000 | I96: -48000 | J96: -20000 | K96: 9000 | L96: 37000 | M96: 66000 | N96: 94000 | O96: 123000 | P96: 151000
E97: 1200 | F97: -124000 | G97: -96000 | H97: -67000 | I97: -39000 | J97: -10000 | K97: 18000 | L97: 47000 | M97: 75000 | N97: 104000 | O97: 132000 | P97: 161000
E98: 1275 | F98: -115000 | G98: -86000 | H98: -58000 | I98: -29000 | J98: -1000 | K98: 28000 | L98: 56000 | M98: 85000 | N98: 113000 | O98: 142000 | P98: 170000
E99: 1350 | F99: -105000 | G99: -77000 | H99: -48000 | I99: -20000 | J99: 9000 | K99: 37000 | L99: 66000 | M99: 94000 | N99: 123000 | O99: 151000 | P99: 180000
E100: 1425 | F100: -95000 | G100: -67000 | H100: -38000 | I100: -10000 | J100: 19000 | K100: 47000 | L100: 75000 | M100: 104000 | N100: 132000 | O100: 161000 | P100: 189000
E101: 1500 | F101: -86000 | G101: -57000 | H101: -29000 | I101: 0 | J101: 28000 | K101: 57000 | L101: 85000 | M101: 114000 | N101: 142000 | O101: 171000 | P101: 199000
E102: 1575 | F102: -76000 | G102: -48000 | H102: -19000 | I102: 9000 | J102: 38000 | K102: 66000 | L102: 95000 | M102: 123000 | N102: 152000 | O102: 180000 | P102: 209000
E103: 1650 | F103: -67000 | G103: -38000 | H103: -10000 | I103: 19000 | J103: 47000 | K103: 76000 | L103: 104000 | M103: 133000 | N103: 161000 | O103: 190000 | P103: 218000
E104: 1725 | F104: -57000 | G104: -29000 | H104: 0 | I104: 28000 | J104: 57000 | K104: 85000 | L104: 114000 | M104: 142000 | N104: 171000 | O104: 199000 | P104: 228000
E105: 1800 | F105: -47000 | G105: -19000 | H105: 10000 | I105: 38000 | J105: 67000 | K105: 95000 | L105: 123000 | M105: 152000 | N105: 180000 | O105: 209000 | P105: 237000
E106: 1875 | F106: -38000 | G106: -9000 | H106: 19000 | I106: 48000 | J106: 76000 | K106: 105000 | L106: 133000 | M106: 162000 | N106: 190000 | O106: 219000 | P106: 247000
E107: 1950 | F107: -28000 | G107: 0 | H107: 29000 | I107: 57000 | J107: 86000 | K107: 114000 | L107: 143000 | M107: 171000 | N107: 200000 | O107: 228000 | P107: 257000
E108: 2025 | F108: -19000 | G108: 10000 | H108: 38000 | I108: 67000 | J108: 95000 | K108: 124000 | L108: 152000 | M108: 181000 | N108: 209000 | O108: 238000 | P108: 266000
E109: 2100 | F109: -9000 | G109: 19000 | H109: 48000 | I109: 76000 | J109: 105000 | K109: 133000 | L109: 162000 | M109: 190000 | N109: 219000 | O109: 247000 | P109: 276000

Sheet Data
A2: Vyrobená elektřina během 0.tého roku | J2: Vyrobená elektřina v jednotlivých letech | O2: Příjmy 0. roku
P3: elektřina | Q3: uhlí
B4: měsíc | C4: E [kWh] | K4: rok | L4: E [kWh] | O4: ušetřeno část prvního měsíce [kWh] | P4: =INDEX(B5:C16,MONTH(Zadání!C7),2)/30*DAY(Zadání!C7) -> 434.4 | Q4: =INDEX(B5:C16,MONTH(Zadání!C7),2)/30*(30-DAY(Zadání!C7)) -> 108.6
B5: leden | C5: 174 | K5: 1 | L5: =C17*0.975 -> 5619.9 | O5: ušetřeno v průběhu [kWh] | P5: =ForC(MONTH(Zadání!C8)+4+1, MONTH(Zadání!C7)+4-1) -> 2067 | Q5: =ForC(MONTH(Zadání!C7)+4+1, MONTH(Zadání!C8)+4-1) -> 2445
B6: únor | C6: 290 | K6: 2 | L6: =L5-($C$17/100*0.7) -> 5579.552 | O6: ušetřeno část posledního měsíce [kWh] | P6: =INDEX(B5:C16,MONTH(Zadání!C8),2)/30*(30-DAY(Zadání!C8)) -> 567.2 | Q6: =INDEX(B5:C16,MONTH(Zadání!C8),2)/30*DAY(Zadání!C8) -> 141.8
B7: březen | C7: 542 | K7: 3 | L7: 5539.204
B8: duben | C8: 695 | K8: 4 | L8: 5498.856 | O8: ušetřeno celkem [kWh] | P8: =SUM(P4:P6) -> 3068.6 | Q8: =SUM(Q4:Q6) -> 2695.4
B9: květen | C9: 709 | K9: 5 | L9: 5458.508
B10: červen | C10: 699 | K10: 6 | L10: 5418.16
B11: červenec | C11: 700 | K11: 7 | L11: 5377.812 | O11: ušetřená elektřina [Kč] | P11: =P8*Zadání!C3 -> 4019.866
B12: srpen | C12: 668 | K12: 8 | L12: 5337.464 | O12: ušetřené uhlí [Kč] | P12: =Zadání!C5/(0.8*100*17.6*10^6/3600*10^-3)*Q8 -> 2136.410795
B13: září | C13: 543 | K13: 9 | L13: 5297.116
B14: říjen | C14: 399 | K14: 10 | L14: 5256.768 | O14: ušetřeno celkem [Kč] | P14: =SUM(P11:P12) -> 6156.276795
B15: listopad | C15: 195 | K15: 11 | L15: 5216.42
B16: prosinec | C16: 150 | K16: 12 | L16: 5176.072
B17: celkem | C17: =SUM(C5:C16) -> 5764 | K17: 13 | L17: 5135.724
K18: 14 | L18: 5095.376
K19: 15 | L19: 5055.028
K20: 16 | L20: 5014.68
K21: 17 | L21: 4974.332
K22: 18 | L22: 4933.984
K23: 19 | L23: 4893.636
K24: 20 | L24: 4853.288
K25: 21 | L25: 4812.94
K26: 22 | L26: 4772.592
K27: 23 | L27: 4732.244
K28: 24 | L28: 4691.896
K29: 25 | L29: =C17*0.802 -> 4622.728

Sheet Cash Flow
B3: Rok | C3: 0 | D3: 1 | E3: 2 | F3: 3 | G3: 4 | H3: 5 | I3: 6 | J3: 7 | K3: 8 | L3: 9 | M3: 10 | N3: 11 | O3: 12 | P3: 13 | Q3: 14 | R3: 15 | S3: 16 | T3: 17 | U3: 18 | V3: 19 | W3: 20 | X3: 21 | Y3: 22 | Z3: 23 | AA3: 24 | AB3: 25
B4: 1) Příjmy
B5: Dotace | C5: =35000+5000 -> 40000 | D5: 0 | E5: 0 | F5: 0 | G5: 0 | H5: 0 | I5: 0 | J5: 0 | K5: 0 | L5: 0 | M5: 0 | N5: 0 | O5: 0 | P5: 0 | Q5: 0 | R5: 0 | S5: 0 | T5: 0 | U5: 0 | V5: 0 | W5: 0 | X5: 0 | Y5: 0 | Z5: 0 | AA5: 0 | AB5: 0
B6: Ušetřené výdaje za elektřinu | C6: 0 | D6: =FV(Zadání!$C$4/100,D3,,-Data!$P$11*0.975) -> 3997.756737 | E6: =FV(Zadání!$C$4/100,E3,,-Data!$P$11*0.968) -> 4048.435992 | F6: =FV(Zadání!$C$4/100,F3,,-Data!$P$11*0.961) -> 4099.543314 | G6: =FV(Zadání!$C$4/100,G3,,-Data!$P$11*0.954) -> 4151.075554 | H6: =FV(Zadání!$C$4/100,H3,,-Data!$P$11*0.947) -> 4203.029267 | I6: =FV(Zadání!$C$4/100,I3,,-Data!$P$11*0.94) -> 4255.400698 | J6: =FV(Zadání!$C$4/100,J3,,-Data!$P$11*0.933) -> 4308.185775 | K6: =FV(Zadání!$C$4/100,K3,,-Data!$P$11*0.926) -> 4361.380095 | L6: =FV(Zadání!$C$4/100,L3,,-Data!$P$11*0.919) -> 4414.978913 | M6: =FV(Zadání!$C$4/100,M3,,-Data!$P$11*0.912) -> 4468.977131 | N6: =FV(Zadání!$C$4/100,N3,,-Data!$P$11*0.905) -> 4523.369287 | O6: =FV(Zadání!$C$4/100,O3,,-Data!$P$11*0.898) -> 4578.149539 | P6: =FV(Zadání!$C$4/100,P3,,-Data!$P$11*0.891) -> 4633.311652 | Q6: =FV(Zadání!$C$4/100,Q3,,-Data!$P$11*0.884) -> 4688.848991 | R6: =FV(Zadání!$C$4/100,R3,,-Data!$P$11*0.877) -> 4744.754498 | S6: =FV(Zadání!$C$4/100,S3,,-Data!$P$11*0.87) -> 4801.020686 | T6: =FV(Zadání!$C$4/100,T3,,-Data!$P$11*0.863) -> 4857.639619 | U6: =FV(Zadání!$C$4/100,U3,,-Data!$P$11*0.856) -> 4914.602902 | V6: =FV(Zadání!$C$4/100,V3,,-Data!$P$11*0.849) -> 4971.90166 | W6: =FV(Zadání!$C$4/100,W3,,-Data!$P$11*0.842) -> 5029.526527 | X6: =FV(Zadání!$C$4/100,X3,,-Data!$P$11*0.835) -> 5087.467629 | Y6: =FV(Zadání!$C$4/100,Y3,,-Data!$P$11*0.828) -> 5145.714563 | Z6: =FV(Zadání!$C$4/100,Z3,,-Data!$P$11*0.821) -> 5204.256389 | AA6: =FV(Zadání!$C$4/100,AA3,,-Data!$P$11*0.814) -> 5263.081601 | AB6: =FV(Zadání!$C$4/100,AB3,,-Data!$P$11*0.802) -> 5289.203038
B7: Ušetřené výdaje za uhlí | C7: 0 | D7: =FV(Zadání!$C$6/100,D3,,-Data!$P$12*0.975) -> 2124.660536 | E7: =FV(Zadání!$C$6/100,E3,,-Data!$P$12*0.968) -> 2151.594694 | F7: =FV(Zadání!$C$6/100,F3,,-Data!$P$12*0.961) -> 2178.756355 | G7: =FV(Zadání!$C$6/100,G3,,-Data!$P$12*0.954) -> 2206.143843 | H7: =FV(Zadání!$C$6/100,H3,,-Data!$P$12*0.947) -> 2233.755329 | I7: =FV(Zadání!$C$6/100,I3,,-Data!$P$12*0.94) -> 2261.588817 | J7: =FV(Zadání!$C$6/100,J3,,-Data!$P$12*0.933) -> 2289.642142 | K7: =FV(Zadání!$C$6/100,K3,,-Data!$P$12*0.926) -> 2317.912965 | L7: =FV(Zadání!$C$6/100,L3,,-Data!$P$12*0.919) -> 2346.398763 | M7: =FV(Zadání!$C$6/100,M3,,-Data!$P$12*0.912) -> 2375.096829 | N7: =FV(Zadání!$C$6/100,N3,,-Data!$P$12*0.905) -> 2404.004257 | O7: =FV(Zadání!$C$6/100,O3,,-Data!$P$12*0.898) -> 2433.117944 | P7: =FV(Zadání!$C$6/100,P3,,-Data!$P$12*0.891) -> 2462.434577 | Q7: =FV(Zadání!$C$6/100,Q3,,-Data!$P$12*0.884) -> 2491.950628 | R7: =FV(Zadání!$C$6/100,R3,,-Data!$P$12*0.877) -> 2521.662347 | S7: =FV(Zadání!$C$6/100,S3,,-Data!$P$12*0.87) -> 2551.565754 | T7: =FV(Zadání!$C$6/100,T3,,-Data!$P$12*0.863) -> 2581.656633 | U7: =FV(Zadání!$C$6/100,U3,,-Data!$P$12*0.856) -> 2611.930521 | V7: =FV(Zadání!$C$6/100,V3,,-Data!$P$12*0.849) -> 2642.382701 | W7: =FV(Zadání!$C$6/100,W3,,-Data!$P$12*0.842) -> 2673.008197 | X7: =FV(Zadání!$C$6/100,X3,,-Data!$P$12*0.835) -> 2703.801759 | Y7: =FV(Zadání!$C$6/100,Y3,,-Data!$P$12*0.828) -> 2734.757861 | Z7: =FV(Zadání!$C$6/100,Z3,,-Data!$P$12*0.821) -> 2765.870686 | AA7: =FV(Zadání!$C$6/100,AA3,,-Data!$P$12*0.814) -> 2797.134121 | AB7: =FV(Zadání!$C$6/100,AB3,,-Data!$P$12*0.802) -> 2811.016703
B8: Příjmy celkem | C8: =SUM(C5:C7) -> 40000 | D8: =SUM(D5:D7) -> 6122.417273 | E8: 6200.030686 | F8: 6278.299668 | G8: 6357.219398 | H8: 6436.784597 | I8: 6516.989515 | J8: 6597.827917 | K8: 6679.293059 | L8: 6761.377676 | M8: 6844.07396 | N8: 6927.373545 | O8: 7011.267483 | P8: 7095.746229 | Q8: 7180.799618 | R8: 7266.416844 | S8: 7352.58644 | T8: 7439.296252 | U8: 7526.533423 | V8: 7614.284361 | W8: 7702.534724 | X8: 7791.269388 | Y8: 7880.472424 | Z8: 7970.127074 | AA8: 8060.215722 | AB8: 8100.219741
B10: 2) Výdaje
B11: Investiční výdaje | C11: 282103.05 | D11: 0 | E11: 0 | F11: 0 | G11: 0 | H11: 0 | I11: 0 | J11: 0 | K11: 0 | L11: 0 | M11: 0 | N11: 0 | O11: 0 | P11: 0 | Q11: 0 | R11: 0 | S11: 0 | T11: 0 | U11: 0 | V11: 0 | W11: 0 | X11: 0 | Y11: 0 | Z11: 0 | AA11: 0 | AB11: 0
B12: Reinvestice | C12: 0 | D12: 0 | E12: 0 | F12: 0 | G12: 0 | H12: 0 | I12: 0 | J12: 0 | K12: 0 | L12: 0 | M12: =FV(0.02,M3,,-4893) -> 5964.539697 | N12: 0 | O12: 0 | P12: 0 | Q12: 0 | R12: =FV(0.02,M3,,-25472) -> 31050.22587 | S12: 0 | T12: 0 | U12: 0 | V12: 0 | W12: =FV(0.02,W3,,-4893) -> 7270.740609 | X12: 0 | Y12: 0 | Z12: 0 | AA12: 0 | AB12: 0
B13: Čištění | C13: 0 | D13: =FV(0.02,D3,,-580) -> 591.6 | E13: =FV(0.02,E3,,-580) -> 603.432 | F13: 615.50064 | G13: 627.8106528 | H13: 640.3668659 | I13: 653.1742032 | J13: 666.2376872 | K13: 679.562441 | L13: 693.1536898 | M13: 707.0167636 | N13: 721.1570989 | O13: 735.5802408 | P13: 750.2918457 | Q13: 765.2976826 | R13: 780.6036362 | S13: 796.215709 | T13: 812.1400231 | U13: 828.3828236 | V13: 844.9504801 | W13: 861.8494897 | X13: 879.0864795 | Y13: 896.6682091 | Z13: 914.6015732 | AA13: 932.8936047 | AB13: 0
B14: Pojištění | C14: 0 | D14: =FV(0.02,D3,,-482) -> 491.64 | E14: =FV(0.02,E3,,-482) -> 501.4728 | F14: 511.502256 | G14: =FV(0.02,G3,,-482) -> 521.7323011 | H14: 532.1669471 | I14: 542.8102861 | J14: 553.6664918 | K14: 564.7398216 | L14: 576.0346181 | M14: 587.5553104 | N14: 599.3064166 | O14: 611.292545 | P14: 623.5183959 | Q14: 635.9887638 | R14: 648.7085391 | S14: 661.6827099 | T14: 674.9163641 | U14: 688.4146913 | V14: 702.1829852 | W14: 716.2266449 | X14: 730.5511778 | Y14: 745.1622013 | Z14: 760.0654453 | AA14: 775.2667542 | AB14: 790.7720893
B15: Revize | C15: 0 | D15: 0 | E15: 0 | F15: 0 | G15: =FV(0.02,G3,,-1500) -> 1623.64824 | H15: 0 | I15: 0 | J15: 0 | K15: =FV(0.02,K3,,-1500) -> 1757.489072 | L15: 0 | M15: 0 | N15: 0 | O15: 1902.362692 | P15: 0 | Q15: 0 | R15: 0 | S15: 2059.178558 | T15: 0 | U15: 0 | V15: 0 | W15: 2228.921094 | X15: 0 | Y15: 0 | Z15: 0 | AA15: 2412.655874 | AB15: 0
B16: Demontáž | C16: =IF(Zadání!$C$10='Cash Flow'!C3,FV(0.02,C3,,-13000),0) -> 0 | D16: =IF(Zadání!$C$10='Cash Flow'!D3,FV(0.02,D3,,-13000),0) -> 0 | E16: =IF(Zadání!$C$10='Cash Flow'!E3,FV(0.02,E3,,-13000),0) -> 0 | F16: =IF(Zadání!$C$10='Cash Flow'!F3,FV(0.02,F3,,-13000),0) -> 0 | G16: =IF(Zadání!$C$10='Cash Flow'!G3,FV(0.02,G3,,-13000),0) -> 0 | H16: =IF(Zadání!$C$10='Cash Flow'!H3,FV(0.02,H3,,-13000),0) -> 0 | I16: =IF(Zadání!$C$10='Cash Flow'!I3,FV(0.02,I3,,-13000),0) -> 0 | J16: =IF(Zadání!$C$10='Cash Flow'!J3,FV(0.02,J3,,-13000),0) -> 0 | K16: =IF(Zadání!$C$10='Cash Flow'!K3,FV(0.02,K3,,-13000),0) -> 0 | L16: =IF(Zadání!$C$10='Cash Flow'!L3,FV(0.02,L3,,-13000),0) -> 0 | M16: =IF(Zadání!$C$10='Cash Flow'!M3,FV(0.02,M3,,-13000),0) -> 0 | N16: =IF(Zadání!$C$10='Cash Flow'!N3,FV(0.02,N3,,-13000),0) -> 0 | O16: =IF(Zadání!$C$10='Cash Flow'!O3,FV(0.02,O3,,-13000),0) -> 0 | P16: =IF(Zadání!$C$10='Cash Flow'!P3,FV(0.02,P3,,-13000),0) -> 0 | Q16: =IF(Zadání!$C$10='Cash Flow'!Q3,FV(0.02,Q3,,-13000),0) -> 0 | R16: =IF(Zadání!$C$10='Cash Flow'!R3,FV(0.02,R3,,-13000),0) -> 0 | S16: =IF(Zadání!$C$10='Cash Flow'!S3,FV(0.02,S3,,-13000),0) -> 0 | T16: =IF(Zadání!$C$10='Cash Flow'!T3,FV(0.02,T3,,-13000),0) -> 0 | U16: =IF(Zadání!$C$10='Cash Flow'!U3,FV(0.02,U3,,-13000),0) -> 0 | V16: =IF(Zadání!$C$10='Cash Flow'!V3,FV(0.02,V3,,-13000),0) -> 0 | W16: =IF(Zadání!$C$10='Cash Flow'!W3,FV(0.02,W3,,-13000),0) -> 0 | X16: =IF(Zadání!$C$10='Cash Flow'!X3,FV(0.02,X3,,-13000),0) -> 0 | Y16: =IF(Zadání!$C$10='Cash Flow'!Y3,FV(0.02,Y3,,-13000),0) -> 0 | Z16: =IF(Zadání!$C$10='Cash Flow'!Z3,FV(0.02,Z3,,-13000),0) -> 0 | AA16: =IF(Zadání!$C$10='Cash Flow'!AA3,FV(0.02,AA3,,-13000),0) -> 0 | AB16: =IF(Zadání!$C$10='Cash Flow'!AB3,FV(0.02,AB3,,-13000),0) -> 21327.87793
B17: Výdaje celkem | C17: =SUM(C11:C16) -> 282103.05 | D17: 1083.24 | E17: 1104.9048 | F17: 1127.002896 | G17: 2773.191194 | H17: 1172.533813 | I17: 1195.984489 | J17: 1219.904179 | K17: 3001.791334 | L17: 1269.188308 | M17: 7259.111771 | N17: 1320.463516 | O17: 3249.235478 | P17: 1373.810242 | Q17: 1401.286446 | R17: 32479.53804 | S17: 3517.076976 | T17: 1487.056387 | U17: 1516.797515 | V17: 1547.133465 | W17: 11077.73784 | X17: 1609.637657 | Y17: 1641.83041 | Z17: 1674.667019 | AA17: 4120.816233 | AB17: 22118.65002
B19: Cash Flow | C19: =C8-C17 -> -242103.05 | D19: 5039.177273 | E19: 5095.125886 | F19: 5151.296772 | G19: 3584.028204 | H19: 5264.250784 | I19: 5321.005026 | J19: 5377.923738 | K19: 3677.501725 | L19: 5492.189368 | M19: -415.0378109 | N19: 5606.910029 | O19: 3762.032005 | P19: 5721.935987 | Q19: 5779.513172 | R19: -25213.1212 | S19: 3835.509463 | T19: 5952.239865 | U19: 6009.735908 | V19: 6067.150896 | W19: -3375.203113 | X19: 6181.631731 | Y19: 6238.642014 | Z19: 6295.460056 | AA19: 3939.399488 | AB19: -14018.43028

Sheet Příjmy
B2: rok | C2: příjmy [Kč] | D2: poznámka
B3: 0 | C3: 40000 | D3: dotace
B4: 1 | C4: 6190.95471
B5: 2 | C5: 6269.436966
B6: 3 | C6: 6364.964308
B7: 4 | C7: 6461.804968
B8: 5 | C8: 6559.97327
B9: 6 | C9: 6659.483581
B10: 7 | C10: 6760.350315
B11: 8 | C11: 6862.587926
B12: 9 | C12: 6966.2109
B13: 10 | C13: 7071.233759
B14: 11 | C14: 7177.671047
B15: 12 | C15: 7285.537334
B16: 13 | C16: 7394.847203
B17: 14 | C17: 7505.615252
B18: 15 | C18: 7617.856085
B19: 16 | C19: 7731.584305
B20: 17 | C20: 7846.81451
B21: 18 | C21: 7963.561291
B22: 19 | C22: 8081.839217
B23: 20 | C23: 8201.662835
B24: 21 | C24: 8323.046663
B25: 22 | C25: 8446.005178
B26: 23 | C26: 8570.552816
B27: 24 | C27: 8696.703957
B28: 25 | C28: 8190.897699

Sheet Výdaje
B2: rok | C2: výdaj [Kč] | D2: poznámka
B3: 0 | C3: 282103.05 | D3: Investiční výdaje
B4: 1 | C4: 1083.24
B5: 2 | C5: 1104.9048
B6: 3 | C6: 1127.002896
B7: 4 | C7: 2773.191194
B8: 5 | C8: 1172.533813
B9: 6 | C9: 1195.984489
B10: 7 | C10: 1219.904179
B11: 8 | C11: 3001.791334
B12: 9 | C12: 1269.188308
B13: 10 | C13: 7259.111771
B14: 11 | C14: 1320.463516
B15: 12 | C15: 3249.235478
B16: 13 | C16: 1373.810242
B17: 14 | C17: 1401.286446
B18: 15 | C18: 32479.53804
B19: 16 | C19: 3517.076976
B20: 17 | C20: 1487.056387
B21: 18 | C21: 1516.797515
B22: 19 | C22: 1547.133465
B23: 20 | C23: 11077.73784
B24: 21 | C24: 1609.637657
B25: 22 | C25: 1641.83041
B26: 23 | C26: 1674.667019
B27: 24 | C27: 4120.816233
B28: 25 | C28: 20790.77209

Sheet CF - pro tisk
A1: Rok | B1: 0 | C1: 1 | D1: 2 | E1: 3 | F1: 4 | G1: 5 | H1: 6 | I1: 7 | J1: 8 | K1: 9 | L1: 10 | O1: Rok | P1: 11 | Q1: 12 | R1: 13 | S1: 14 | T1: 15 | U1: 16 | V1: 17 | W1: 18 | X1: 19 | Y1: 20 | Z1: 21 | AA1: 22 | AB1: 23 | AC1: 24 | AD1: 25
A2: 1) Příjmy | O2: 1) Příjmy
A3: Dotace | B3: 40000 | C3: 0 | D3: 0 | E3: 0 | F3: 0 | G3: 0 | H3: 0 | I3: 0 | J3: 0 | K3: 0 | L3: 0 | O3: Dotace | P3: 0 | Q3: 0 | R3: 0 | S3: 0 | T3: 0 | U3: 0 | V3: 0 | W3: 0 | X3: 0 | Y3: 0 | Z3: 0 | AA3: 0 | AB3: 0 | AC3: 0 | AD3: 0
A4: Ušetřené výdaje za elektřinu | B4: 0 | C4: 3997.756737 | D4: 4048.435992 | E4: 4099.543314 | F4: 4151.075554 | G4: 4203.029267 | H4: 4255.400698 | I4: 4308.185775 | J4: 4361.380095 | K4: 4414.978913 | L4: 4468.977131 | O4: Ušetřené výdaje za elektřinu | P4: 4523.369287 | Q4: 4578.149539 | R4: 4633.311652 | S4: 4688.848991 | T4: 4744.754498 | U4: 4801.020686 | V4: 4857.639619 | W4: 4914.602902 | X4: 4971.90166 | Y4: 5029.526527 | Z4: 5087.467629 | AA4: 5145.714563 | AB4: 5204.256389 | AC4: 5263.081601 | AD4: 5289.203038
A5: Ušetřené výdaje za uhlí | B5: 0 | C5: 2124.660536 | D5: 2151.594694 | E5: 2178.756355 | F5: 2206.143843 | G5: 2233.755329 | H5: 2261.588817 | I5: 2289.642142 | J5: 2317.912965 | K5: 2346.398763 | L5: 2375.096829 | O5: Ušetřené výdaje za uhlí | P5: 2404.004257 | Q5: 2433.117944 | R5: 2462.434577 | S5: 2491.950628 | T5: 2521.662347 | U5: 2551.565754 | V5: 2581.656633 | W5: 2611.930521 | X5: 2642.382701 | Y5: 2673.008197 | Z5: 2703.801759 | AA5: 2734.757861 | AB5: 2765.870686 | AC5: 2797.134121 | AD5: 2811.016703
A6: Příjmy celkem | B6: 40000 | C6: 6122.417273 | D6: 6200.030686 | E6: 6278.299668 | F6: 6357.219398 | G6: 6436.784597 | H6: 6516.989515 | I6: 6597.827917 | J6: 6679.293059 | K6: 6761.377676 | L6: 6844.07396 | O6: Příjmy celkem | P6: 6927.373545 | Q6: 7011.267483 | R6: 7095.746229 | S6: 7180.799618 | T6: 7266.416844 | U6: 7352.58644 | V6: 7439.296252 | W6: 7526.533423 | X6: 7614.284361 | Y6: 7702.534724 | Z6: 7791.269388 | AA6: 7880.472424 | AB6: 7970.127074 | AC6: 8060.215722 | AD6: 8100.219741
A8: 2) Výdaje | O8: 2) Výdaje
A9: Investiční výdaje | B9: 282103.05 | C9: 0 | D9: 0 | E9: 0 | F9: 0 | G9: 0 | H9: 0 | I9: 0 | J9: 0 | K9: 0 | L9: 0 | O9: Investiční výdaje | P9: 0 | Q9: 0 | R9: 0 | S9: 0 | T9: 0 | U9: 0 | V9: 0 | W9: 0 | X9: 0 | Y9: 0 | Z9: 0 | AA9: 0 | AB9: 0 | AC9: 0 | AD9: 0
A10: Reinvestice | B10: 0 | C10: 0 | D10: 0 | E10: 0 | F10: 0 | G10: 0 | H10: 0 | I10: 0 | J10: 0 | K10: 0 | L10: 5964.539697 | O10: Reinvestice | P10: 0 | Q10: 0 | R10: 0 | S10: 0 | T10: 31050.22587 | U10: 0 | V10: 0 | W10: 0 | X10: 0 | Y10: 7270.740609 | Z10: 0 | AA10: 0 | AB10: 0 | AC10: 0 | AD10: 0
A11: Čištění | B11: 0 | C11: 591.6 | D11: 603.432 | E11: 615.50064 | F11: 627.8106528 | G11: 640.3668659 | H11: 653.1742032 | I11: 666.2376872 | J11: 679.562441 | K11: 693.1536898 | L11: 707.0167636 | O11: Čištění | P11: 721.1570989 | Q11: 735.5802408 | R11: 750.2918457 | S11: 765.2976826 | T11: 780.6036362 | U11: 796.215709 | V11: 812.1400231 | W11: 828.3828236 | X11: 844.9504801 | Y11: 861.8494897 | Z11: 879.0864795 | AA11: 896.6682091 | AB11: 914.6015732 | AC11: 932.8936047 | AD11: 0
A12: Pojištění | B12: 0 | C12: 491.64 | D12: 501.4728 | E12: 511.502256 | F12: 521.7323011 | G12: 532.1669471 | H12: 542.8102861 | I12: 553.6664918 | J12: 564.7398216 | K12: 576.0346181 | L12: 587.5553104 | O12: Pojištění | P12: 599.3064166 | Q12: 611.292545 | R12: 623.5183959 | S12: 635.9887638 | T12: 648.7085391 | U12: 661.6827099 | V12: 674.9163641 | W12: 688.4146913 | X12: 702.1829852 | Y12: 716.2266449 | Z12: 730.5511778 | AA12: 745.1622013 | AB12: 760.0654453 | AC12: 775.2667542 | AD12: 790.7720893
A13: Revize | B13: 0 | C13: 0 | D13: 0 | E13: 0 | F13: 1623.64824 | G13: 0 | H13: 0 | I13: 0 | J13: 1757.489072 | K13: 0 | L13: 0 | O13: Revize | P13: 0 | Q13: 1902.362692 | R13: 0 | S13: 0 | T13: 0 | U13: 2059.178558 | V13: 0 | W13: 0 | X13: 0 | Y13: 2228.921094 | Z13: 0 | AA13: 0 | AB13: 0 | AC13: 2412.655874 | AD13: 0
A14: Demontáž | B14: 0 | C14: 0 | D14: 0 | E14: 0 | F14: 0 | G14: 0 | H14: 0 | I14: 0 | J14: 0 | K14: 0 | L14: 0 | O14: Demontáž | P14: 0 | Q14: 0 | R14: 0 | S14: 0 | T14: 0 | U14: 0 | V14: 0 | W14: 0 | X14: 0 | Y14: 0 | Z14: 0 | AA14: 0 | AB14: 0 | AC14: 0 | AD14: 21327.87793
A15: Výdaje celkem | B15: 282103.05 | C15: 1083.24 | D15: 1104.9048 | E15: 1127.002896 | F15: 2773.191194 | G15: 1172.533813 | H15: 1195.984489 | I15: 1219.904179 | J15: 3001.791334 | K15: 1269.188308 | L15: 7259.111771 | O15: Výdaje celkem | P15: 1320.463516 | Q15: 3249.235478 | R15: 1373.810242 | S15: 1401.286446 | T15: 32479.53804 | U15: 3517.076976 | V15: 1487.056387 | W15: 1516.797515 | X15: 1547.133465 | Y15: 11077.73784 | Z15: 1609.637657 | AA15: 1641.83041 | AB15: 1674.667019 | AC15: 4120.816233 | AD15: 22118.65002
A17: Cash Flow | B17: -242103.05 | C17: 5039.177273 | D17: 5095.125886 | E17: 5151.296772 | F17: 3584.028204 | G17: 5264.250784 | H17: 5321.005026 | I17: 5377.923738 | J17: 3677.501725 | K17: 5492.189368 | L17: -415.0378109 | O17: Cash Flow | P17: 5606.910029 | Q17: 3762.032005 | R17: 5721.935987 | S17: 5779.513172 | T17: -25213.1212 | U17: 3835.509463 | V17: 5952.239865 | W17: 6009.735908 | X17: 6067.150896 | Y17: -3375.203113 | Z17: 6181.631731 | AA17: 6238.642014 | AB17: 6295.460056 | AC17: 3939.399488 | AD17: -14018.43028
